Workbook

Sheet Instructions
A5: StartUp Stick™ – v1.05

Sheet Configuration
E2: Types in 'Unit Specific' Sheet
E3: None
E4: NIC SN or Row # in 'Unit Specific' Sheet
E6: Set to CDU specified by NIC SN or Row #
B7: System Settings
B8: Parameter | C8: Value
B9: Current admn User Password | C9: admn
B10: New admn User Password | C10: Apply No Change
B11: System Location | C11: Apply No Change
B12: Temperature Scale
B13: Outlet Sequence Order
B14: Outlet sequence Delay
B16: Network Settings
B17: Parameter | C17: Value
B18: Network Mode
B19: DHCP Enabled
B20: DHCP Boot Delay Enabled
B21: DHCP Static Address Fallback Enabled
B22: DHCP FQDN Enabled
B23: FQDN Name | C23: Apply No Change
B24: Static IPv6 Address | C24: Apply No Change
B25: Static IPv6 Prefix | C25: Apply No Change
B26: Static IPv6 Gateway | C26: Apply No Change
B27: Static IPv4 Address | C27: Apply No Change
B28: Static IPv4 Subnet Mask | C28: Apply No Change
B29: Static IPv4 Gateway | C29: Apply No Change
B30: Static Primary DNS Server | C30: Apply No Change
B31: Static Secondary DNS Server | C31: Apply No Change
B33: TELNET/SSH Settings
B34: Parameter | C34: Value
B35: Telnet Enabled
B36: Telnet Port | C36: Apply No Change
B37: SSH Enabled
B38: SSH Port | C38: Apply No Change
B39: SSH Authentication Method
B41: HTTP/SSL Settings
B42: Parameter | C42: Value
B43: HTTP Enabled
B44: HTTP Port | C44: Apply No Change
B45: HTTPS (SSL) Enabled
B46: HTTPS (SSL) Port | C46: Apply No Change
B48: FTP Settings
B49: Parameter | C49: Value
B50: FTP Server Enabled
B51: FTP Client Auto Update Enabled
B52: FTP Client Update Host | C52: Apply No Change
B53: FTP Client Update User Name | C53: Apply No Change
B54: FTP Client Update Password | C54: Apply No Change
B55: FTP Client Update Directory | C55: Apply No Change
B56: FTP Client Update File Name | C56: Apply No Change
B57: FTP Client Update Day
B58: FTP Client Update Hour
B60: SMTP Settings
B61: Parameter | C61: Value
B62: SMTP Notifications Enabled
B63: SMTP Host | C63: Apply No Change
B64: SMTP Host Port | C64: Apply No Change
B65: SMTP From Address | C65: Apply No Change
B66: SMTP Primary To Address | C66: Apply No Change
B67: SMTP Secondary To Address | C67: Apply No Change
B68: SMTP Event Messages Enabled
B69: SMTP Authorization Messages Enabled
B70: SMTP Configuration Messages Enabled
B71: SMTP Power Messages Enabled
B72: SMTP Authentication Type
B73: SMTP Authenticate With
B74: SMTP Host Authentication User Name | C74: Apply No Change
B75: SMTP Host Authentication Password | C75: Apply No Change
B76: SMTP Subject Used
B78: SNMP Settings
B79: Parameter | C79: Value
B80: SNMP V1/V2 Enabled
B81: SNMP V2 Get Community | C81: Apply No Change
B82: SNMP V2 Set Community | C82: Apply No Change
B83: SNMP V2 Trap Community | C83: Apply No Change
B84: SNMP V3 Enabled
B85: SNMP V3 RW User Authentication Method
B86: SNMP V3 RW User Name | C86: Apply No Change
B87: SNMP V3 RW User Authentication Password | C87: Apply No Change
B88: SNMP V3 RW User Privacy Password | C88: Apply No Change
B89: SNMP V3 RO User Authentication Method
B90: SNMP V3 RO User Name | C90: Apply No Change
B91: SNMP V3 RO User Authentication Password | C91: Apply No Change
B92: SNMP V3 RO User Privacy Password | C92: Apply No Change
B93: SNMP V3 Trap User Name | C93: Apply No Change
B94: SNMP Trap Format
B95: SNMP Trap Destination Primary Host | C95: Apply No Change
B96: SNMP Trap Destination Secondary Host | C96: Apply No Change
B97: SNMP Trap IP Restrictions
B98: SNMP Trap Error Repeat Time(seconds) | C98: Apply No Change
B99: SNMP System Name | C99: Apply No Change
B100: SNMP System Contact | C100: Apply No Change
B102: SNTP/DST Settings
B103: Parameter | C103: Value
B104: SNTP Primary Host | C104: Apply No Change
B105: SNTP Secondary Host | C105: Apply No Change
B106: Local GMT Offset | C106: Apply No Change
B107: DST Enabled
B108: DST Start TZ | C108: Apply No Change
B109: DST End TZ | C109: Apply No Change
B111: SysLog Settings
B112: Parameter | C112: Value
B113: SysLog Primary Host | C113: Apply No Change
B114: SysLog Secondary Host | C114: Apply No Change
B115: SysLog Port | C115: Apply No Change
B117: WLAN Settings
B118: Parameter | C118: Value
B119: WLAN Enabled
B120: bssid | C120: Apply No Change
B121: Key | C121: Apply No Change
B122: Key Secure | C122: Apply No Change
B123: Security
B124: ssid | C124: Apply No Change
B126: LDAP Settings
B127: Parameter | C127: Value
B128: bind type
B129: group membership attribute | C129: Apply No Change
B130: group search
B131: group search base distinguished name | C131: Apply No Change
B132: port | C132: Apply No Change
B133: primary host | C133: Apply No Change
B134: search bind distinguished name | C134: Apply No Change
B135: search bind password | C135: Apply No Change
B136: search bind password secure | C136: Apply No Change
B137: secondary host | C137: Apply No Change
B138: user membership attribute | C138: Apply No Change
B139: user search base distinguished name | C139: Apply No Change
B140: user search filter | C140: Apply No Change

Sheet Unit Specific
A1: Network Interface Card Serial Number (NIC SN)

Sheet Imported Log
A1: Log Entries

Sheet Input (hidden)
B1: Apply No Change
A3: Field | B3: Network Mode
B4: text
B5: =B1 -> Apply No Change
B6: Disabled
B7: IPv4 Only
B8: Dual IPv6/IPv4
A10: Field | B10: Unit Specific
B11: text
B12: Global
B13: Per Unit
B14: Formula
A16: Field | B16: SMTP Authentication Type
B17: =B1 -> Apply No Change
B18: None
B19: Digest-MD5
B20: CRAM-MD5
B21: LOGIN
B22: PLAIN
B23: Any
A25: Field | B25: Ftp Client Update Day
B26: =B1 -> Apply No Change
B27: Sunday
B28: Monday
B29: Tuesday
B30: Wednesday
B31: Thursday
B32: Friday
B33: Saturday
B34: Everyday
A36: Field | B36: Snmp V3 Authendication Type
B37: =B1 -> Apply No Change
B38: None
B39: MD5
A41: Field | B41: ftp client update hour
B42: =B1 -> Apply No Change
B43: 12 am
B44: 1 am
B45: 2 am
B46: 3 am
B47: 4 am
B48: 5 am
B49: 6 am
B50: 7 am
B51: 8 am
B52: 9 am
B53: 10 am
B54: 11 am
B55: 12 pm
B56: 1 pm
B57: 2 pm
B58: 3 pm
B59: 4 pm
B60: 5 pm
B61: 6 pm
B62: 7 pm
B63: 8 pm
B64: 9 pm
B65: 10 pm
B66: 11 pm
A68: Field | B68: Smtp Authenticate With
B69: =B1 -> Apply No Change
B70: SMTP From Address
B71: SMTP Authentication User Name
A73: Field | B73: SMTP Subject Used
B74: =B1 -> Apply No Change
B75: Location
B76: System ID
A78: Field | B78: Web Server Protocol(s)
B79: =B1 -> Apply No Change
B80: None
B81: Http
B82: Http + Https
B83: Https
A85: Field | B85: SNMP Auth Type
B86: =B1 -> Apply No Change
B87: None
B88: MD5
B89: MD5 With DES
A92: Field | B92: SNMP Trap Format
B93: =B1 -> Apply No Change
B94: V1
B95: V2c
B96: V3
A98: Field | B98: Ssh Authentication Mode
B99: =B1 -> Apply No Change
B100: Password Only
B101: Keyboard Only
B102: Keyboard and Password
A104: Field | B104: Snmp Trap Ip Restrictions
B105: =B1 -> Apply No Change
B106: None
B107: Trap Destinations Only | F107: not net addr | G107: not broad addr | H107: is point to point (CDU does not support /31, point to point, which is reasonable as not a router! second row validates /31)
D108: not equal | E108: same subnet | F108: =IF(J110<>K110,TRUE,FALSE) -> TRUE | G108: =IF(J110<>K111,TRUE,FALSE) -> TRUE | H108: FALSE
A109: Is Gateway in subnet | C109: =IF(D109*E109*F108*F109*G108*G109=1,TRUE,H108) -> TRUE | D109: =IF(J110<>J112,TRUE,FALSE) -> TRUE | E109: =IF(K110=K112,TRUE,FALSE) -> TRUE | F109: =IF(J112<>K112,TRUE,FALSE) -> TRUE | G109: =IF(J112<>K111,TRUE,FALSE) -> TRUE | H109: =IF(J111=4294967294,IF((ABS(J110-J112)=1),E109,FALSE),FALSE) -> FALSE
A110: Ipv4 Address | C110: 10 | D110: 1 | E110: 2 | F110: 1 | J110: =C110*2^24+D110*2^16+E110*2^8+F110 -> 167838209 | K110: =SUMPRODUCT(F116:F147,G116:G147) -> 167837696
A111: Ipv4 Subnet | C111: 255 | D111: 255 | E111: 0 | F111: 0 | G111: 0 | H111: =SUM(C116:C147) -> 0 | I111: =C111*2^24+D111*2^16+E111*2^8+F111 -> 4294901760 | J111: =IF(IpV4SubnetBits<>0,H111,I111) -> 4294901760 | K111: =K110+(2^32-J111)-1 -> 167903231
A112: IpV4 Gateway | C112: 10 | D112: 1 | E112: 1 | F112: 1 | J112: =C112*2^24+D112*2^16+E112*2^8+F112 -> 167837953 | K112: =SUMPRODUCT(F116:F147,H116:H147) -> 167837696
A113: IpV4 Subnet Broadcast
A115: Used to calcultate subnet when bits are specified. | G115: IP Bits | H115: Gateway Bits
A116: 1 | B116: =IF($G$111>=A116,1,0) -> 0 | C116: =((2^(A$147-A116))*B116) -> 0 | E116: 128.0.0.0 | F116: =2^(A$147-A116) -> 2147483648 | G116: =IF(ISEVEN(INT($J$110/(2^(32-A116)))),0,1)*IF(ISEVEN(INT($J$111/(2^(32-A116)))),0,1) -> 0 | H116: =IF(ISEVEN(INT($J$112/(2^(32-A116)))),0,1)*IF(ISEVEN(INT($J$111/(2^(32-A116)))),0,1) -> 0 | I116: MSB
A117: =A116+1 -> 2 | B117: =IF($G$111>=A117,1,0) -> 0 | C117: 0 | E117: 192.0.0.0 | F117: =2^(A$147-A117) -> 1073741824 | G117: =IF(ISEVEN(INT($J$110/(2^(32-A117)))),0,1)*IF(ISEVEN(INT($J$111/(2^(32-A117)))),0,1) -> 0 | H117: =IF(ISEVEN(INT($J$112/(2^(32-A117)))),0,1)*IF(ISEVEN(INT($J$111/(2^(32-A117)))),0,1) -> 0
A118: =A117+1 -> 3 | B118: 0 | C118: 0 | E118: 224.0.0.0 | F118: 536870912 | G118: 0 | H118: 0
A119: 4 | B119: 0 | C119: 0 | E119: 240.0.0.0 | F119: 268435456 | G119: 0 | H119: 0
A120: 5 | B120: =IF($G$111>=A120,1,0) -> 0 | C120: 0 | E120: 248.0.0.0 | F120: 134217728 | G120: 1 | H120: 1
A121: 6 | B121: =IF($G$111>=A121,1,0) -> 0 | C121: 0 | E121: 252.0.0.0 | F121: 67108864 | G121: 0 | H121: 0
A122: 7 | B122: 0 | C122: 0 | E122: 254.0.0.0 | F122: 33554432 | G122: 1 | H122: 1
A123: 8 | B123: 0 | C123: 0 | E123: 255.0.0.0 | F123: 16777216 | G123: 0 | H123: 0
A124: 9 | B124: 0 | C124: 0 | E124: 255.128.0.0 | F124: 8388608 | G124: 0 | H124: 0
A125: 10 | B125: 0 | C125: 0 | E125: 255.192.0.0 | F125: 4194304 | G125: 0 | H125: 0
A126: 11 | B126: 0 | C126: 0 | E126: 255.224.0.0 | F126: 2097152 | G126: 0 | H126: 0
A127: 12 | B127: 0 | C127: 0 | E127: 255.240.0.0 | F127: 1048576 | G127: 0 | H127: 0
A128: 13 | B128: 0 | C128: 0 | E128: 255.248.0.0 | F128: 524288 | G128: 0 | H128: 0
A129: 14 | B129: 0 | C129: 0 | E129: 255.252.0.0 | F129: 262144 | G129: 0 | H129: 0
A130: 15 | B130: 0 | C130: 0 | E130: 255.254.0.0 | F130: 131072 | G130: 0 | H130: 0
A131: =A130+1 -> 16 | B131: 0 | C131: 0 | E131: 255.255.0.0 | F131: 65536 | G131: 1 | H131: 1
A132: 17 | B132: 0 | C132: 0 | E132: 255.255.128.0 | F132: 32768 | G132: 0 | H132: 0
A133: 18 | B133: 0 | C133: 0 | E133: 255.255.192.0 | F133: 16384 | G133: 0 | H133: 0
A134: 19 | B134: 0 | C134: 0 | E134: 255.255.224.0 | F134: 8192 | G134: 0 | H134: 0
A135: 20 | B135: 0 | C135: 0 | E135: 255.255.240.0 | F135: 4096 | G135: 0 | H135: 0
A136: 21 | B136: 0 | C136: 0 | E136: 255.255.248.0 | F136: 2048 | G136: 0 | H136: 0
A137: 22 | B137: 0 | C137: 0 | E137: 255.255.252.0 | F137: 1024 | G137: 0 | H137: 0
A138: 23 | B138: 0 | C138: 0 | E138: 255.255.254.0 | F138: 512 | G138: 0 | H138: 0
A139: 24 | B139: 0 | C139: 0 | E139: 255.255.255.0 | F139: 256 | G139: 0 | H139: 0
A140: 25 | B140: 0 | C140: 0 | E140: 255.255.255.128 | F140: 128 | G140: 0 | H140: 0
A141: 26 | B141: 0 | C141: 0 | E141: 255.255.255.192 | F141: 64 | G141: 0 | H141: 0
A142: 27 | B142: 0 | C142: 0 | E142: 255.255.255.224 | F142: 32 | G142: 0 | H142: 0
A143: 28 | B143: 0 | C143: 0 | E143: 255.255.255.240 | F143: 16 | G143: 0 | H143: 0
A144: 29 | B144: 0 | C144: 0 | E144: 255.255.255.248 | F144: 8 | G144: 0 | H144: 0
A145: 30 | B145: 0 | C145: 0 | E145: 255.255.255.252 | F145: 4 | G145: 0 | H145: 0
A146: 31 | B146: 0 | C146: 0 | E146: 255.255.255.254 | F146: 2 | G146: 0 | H146: 0
A147: 32 | B147: 0 | C147: 0 | E147: 255.255.255.255 | F147: 1 | G147: 0 | H147: 0 | I147: LSB
A149: Reference Information
A151: Set Bits In Quad | D151: Quad Value
A152: 0 | D152: 0
A153: =8-B153 -> 1 | B153: 7 | C153: =2^B153 -> 128 | D153: =C153 -> 128
A154: =8-B154 -> 2 | B154: 6 | C154: =2^B154 -> 64 | D154: =SUM(C153:C154) -> 192
A155: 3 | B155: 5 | C155: 32 | D155: =SUM(C153:C155) -> 224
A156: 4 | B156: 4 | C156: 16 | D156: =SUM(C153:C156) -> 240
A157: 5 | B157: 3 | C157: 8 | D157: =SUM(C153:C157) -> 248
A158: 6 | B158: 2 | C158: 4 | D158: =SUM(C153:C158) -> 252
A159: 7 | B159: 1 | C159: 2 | D159: =SUM(C153:C159) -> 254
A160: 8 | B160: 0 | C160: 1 | D160: =SUM(C153:C160) -> 255 | E160: =VALUE(TRIM(RIGHT(SUBSTITUTE(A162,".",REPT(" ",50)),25))) -> 56
A161: split out quads wihtout vba, use excel calculation formula instead
A162: 192.168.50.56 | B162: =VALUE(LEFT(A162,FIND(".",A162)-1)) -> 192 | C162: =VALUE(LEFT(MID(A162,FIND(".",A162)+1,LEN(A162)-LEN(FIND(".",A162))),FIND(".",MID(A162,FIND(".",A162)+1,LEN(A162)-LEN(FIND(".",A162))))-1)) -> 168 | D162: =INT(LEFT(MID(MID(A162,FIND(".",A162)+1,LEN(A162)-LEN(FIND(".",A162))),FIND(".",MID(A162,FIND(".",A162)+1,LEN(A162)-LEN(FIND(".",A162))))+1,LEN(MID(A162,FIND(".",A162)+1,LEN(A162)-LEN(FIND(".",A162))))-LEN(FIND(".",MID(A162,FIND(".",A162)+1,LEN(A162)-LEN(FIND(".",A162)))))),FIND(".",MID(MID(A162,FIND(".",A162)+1,LEN(A162)-LEN(FIND(".",A162))),FIND(".",MID(A162,FIND(".",A162)+1,LEN(A162)-LEN(FIND(".",A162))))+1,LEN(MID(A162,FIND(".",A162)+1,LEN(A162)-LEN(FIND(".",A162))))-LEN(FIND(".",MID(A162,FIND(".",A162)+1,LEN(A162)-LEN(FIND(".",A162)))))))-1)) -> 50
A164: Field | B164: Wlan Secutiry
B165: =B1 -> Apply No Change
B166: open
B167: wep open key
B168: wep shared key
B169: wpa-psk aes
B170: wpa-psk tkip
B171: wpa-psk tkip+aes
B172: wpa2-psk aes
B173: wpa2-psk tkip
B174: wpa2-psk tkip+aes
A176: Field | B176: Ldap bind type
B177: Apply No Change
B178: md5
B179: simple
B180: tls
A182: Field | B182: Temperature Scale
B183: Apply No Change
B184: Fahrenheit
B185: Celsius
A187: Field | B187: Outlet Sequence Order
B188: Apply No Change
B189: Normal
B190: Reversed
A192: Field | B192: Outlet Sequence Delay
B193: Apply No Change
B194: 0
B195: 1
B196: 2
B197: 3
B198: 4
B199: 5
B200: 6
B201: 7
B202: 8
B203: 9
B204: 10
B205: 11
B206: 12
B207: 13
B208: 14
B209: 15
